[Event "Early-Titled-Tuesday-Blitz-June-18-2024"]
[Site "Chess.com"]
[Date "2024.06.18"]
[Round "8"]
[White "A4RookA3"]
[Black "AljoschaFeuerstack"]
[Result "0-1"]
[WhiteElo "2431"]
[BlackElo "2653"]
[TimeControl "180+1"]
[EndTime "9:30:33 PDT"]
[Termination "AljoschaFeuerstack won on time"]

1. d4 {[%clk 0:03:00.9]} 1... d5 {[%clk 0:02:53.7]} 2. Bf4 {[%clk 0:02:57.8]}
2... Nf6 {[%clk 0:02:52.9]} 3. e3 {[%clk 0:02:56]} 3... g6 {[%clk 0:02:52.6]} 4.
Nc3 {[%clk 0:02:55.1]} 4... Bg7 {[%clk 0:02:51.4]} 5. Nb5 {[%clk 0:02:54.9]}
5... Na6 {[%clk 0:02:51.6]} 6. Nc3 {[%clk 0:02:55.4]} 6... Nb8 {[%clk
0:02:49.6]} 7. Nb5 {[%clk 0:02:54.2]} 7... Na6 {[%clk 0:02:49.9]} 8. Nc3 {[%clk
0:02:55.1]} 8... O-O {[%clk 0:02:49.3]} 9. Bxa6 {[%clk 0:02:53.3]} 9... bxa6
{[%clk 0:02:50.2]} 10. Be5 {[%clk 0:02:54]} 10... a5 {[%clk 0:02:48]} 11. Nge2
{[%clk 0:02:50.6]} 11... Ba6 {[%clk 0:02:46.8]} 12. O-O {[%clk 0:02:50.3]} 12...
Re8 {[%clk 0:02:23.2]} 13. Re1 {[%clk 0:02:39.9]} 13... e6 {[%clk 0:02:20.2]}
14. Na4 {[%clk 0:02:35.9]} 14... Bf8 {[%clk 0:02:19.5]} 15. Nc1 {[%clk
0:01:56.5]} 15... Nd7 {[%clk 0:02:14.9]} 16. Bg3 {[%clk 0:01:55.8]} 16... c5
{[%clk 0:02:03.3]} 17. dxc5 {[%clk 0:01:52.4]} 17... Nxc5 {[%clk 0:02:03.5]} 18.
Nxc5 {[%clk 0:01:51.2]} 18... Bxc5 {[%clk 0:02:04.4]} 19. Nd3 {[%clk 0:01:43.1]}
19... Bf8 {[%clk 0:02:00.5]} 20. Qd2 {[%clk 0:01:36.2]} 20... Rc8 {[%clk
0:01:55.9]} 21. Rec1 {[%clk 0:01:33]} 21... Qb6 {[%clk 0:01:49.6]} 22. Be5
{[%clk 0:01:25.2]} 22... Rc4 {[%clk 0:01:44]} 23. Bd4 {[%clk 0:01:20.4]} 23...
Qc7 {[%clk 0:01:07.9]} 24. b3 {[%clk 0:00:39]} 24... Rc6 {[%clk 0:01:07.5]} 25.
Ne5 {[%clk 0:00:39]} 25... Rd6 {[%clk 0:01:02.6]} 26. Bc3 {[%clk 0:00:35.1]}
26... a4 {[%clk 0:00:46.6]} 27. Ba5 {[%clk 0:00:04.7]} 27... Qb7 {[%clk
0:00:34.7]} 28. Nd3 {[%clk 0:00:04.2]} 28... Rc8 {[%clk 0:00:24.9]} 29. b4
{[%clk 0:00:01]} 29... Rdc6 {[%clk 0:00:22.8]} 30. h3 {[%clk 0:00:01.5]} 30...
Bc4 {[%clk 0:00:15.9]} 31. Nc5 {[%clk 0:00:01.7]} 31... Qb5 {[%clk 0:00:14.5]}
32. c3 {[%clk 0:00:01.6]} 32... Rxc5 {[%clk 0:00:13.2]} 33. bxc5 {[%clk
0:00:02.5]} 33... Qxa5 {[%clk 0:00:13.6]} 34. Qd4 {[%clk 0:00:01.5]} 34... Qxc5
{[%clk 0:00:13.7]} 35. Qf6 {[%clk 0:00:02]} 35... Qe7 {[%clk 0:00:13.8]} 36. Qe5
{[%clk 0:00:02]} 36... Bg7 {[%clk 0:00:14.2]} 37. Qf4 {[%clk 0:00:01.9]} 37...
a3 {[%clk 0:00:14.7]} 38. Rab1 {[%clk 0:00:01.7]} 38... Bxa2 {[%clk 0:00:14.1]}
39. Rb8 {[%clk 0:00:02.2]} 39... Rxb8 {[%clk 0:00:12.9]} 40. Qxb8+ {[%clk
0:00:03.1]} 40... Bf8 {[%clk 0:00:13.2]} 41. Ra1 {[%clk 0:00:03.2]} 41... Bc4
{[%clk 0:00:13.8]} 0-1

[Event "Early-Titled-Tuesday-Blitz-June-18-2024"]
[Site "Chess.com"]
[Date "2024.06.18"]
[Round "8"]
[White "ShahMatKanal"]
[Black "Caroexpert"]
[Result "1-0"]
[WhiteElo "2496"]
[BlackElo "2628"]
[TimeControl "180+1"]
[EndTime "9:30:34 PDT"]
[Termination "ShahMatKanal won on time"]

1. Nf3 {[%clk 0:02:52.3]} 1... d5 {[%clk 0:02:59.4]} 2. g3 {[%clk 0:02:51.2]}
2... c5 {[%clk 0:02:59.8]} 3. Bg2 {[%clk 0:02:50.2]} 3... Nc6 {[%clk 0:03:00.5]}
4. O-O {[%clk 0:02:47.2]} 4... e5 {[%clk 0:03:00]} 5. d3 {[%clk 0:02:47.3]} 5...
Be7 {[%clk 0:03:00.5]} 6. e4 {[%clk 0:02:47.1]} 6... d4 {[%clk 0:03:00.5]} 7. a4
{[%clk 0:02:41.6]} 7... h5 {[%clk 0:03:00.6]} 8. h4 {[%clk 0:02:33.1]} 8... Be6
{[%clk 0:02:53.9]} 9. Na3 {[%clk 0:02:24.1]} 9... f6 {[%clk 0:02:53.2]} 10. Nc4
{[%clk 0:02:20.3]} 10... Nh6 {[%clk 0:02:52.9]} 11. Nh2 {[%clk 0:02:13.8]} 11...
Ng4 {[%clk 0:02:43.2]} 12. Nxg4 {[%clk 0:02:02.9]} 12... hxg4 {[%clk 0:02:39.7]}
13. f4 {[%clk 0:02:00.9]} 13... Bxc4 {[%clk 0:02:15.8]} 14. dxc4 {[%clk
0:02:00.4]} 14... exf4 {[%clk 0:02:15.4]} 15. Qxg4 {[%clk 0:01:53.4]} 15... Ne5
{[%clk 0:01:46.5]} 16. Qxg7 {[%clk 0:01:47.3]} 16... Kd7 {[%clk 0:01:46.6]} 17.
Bxf4 {[%clk 0:01:37.2]} 17... Rg8 {[%clk 0:01:41.6]} 18. Qh7 {[%clk 0:01:33.8]}
18... Kc6 {[%clk 0:01:32.2]} 19. Bh3 {[%clk 0:01:10.3]} 19... Qd6 {[%clk
0:01:18.7]} 20. Kh2 {[%clk 0:00:57.7]} 20... Kb6 {[%clk 0:01:01.7]} 21. a5+
{[%clk 0:00:57.2]} 21... Ka6 {[%clk 0:01:01.9]} 22. Qf5 {[%clk 0:00:54.1]} 22...
Raf8 {[%clk 0:00:44.4]} 23. Bxe5 {[%clk 0:00:50.2]} 23... fxe5 {[%clk
0:00:44.2]} 24. Qd7 {[%clk 0:00:50.8]} 24... Qxd7 {[%clk 0:00:34.7]} 25. Bxd7
{[%clk 0:00:51.7]} 25... b6 {[%clk 0:00:35.2]} 26. axb6+ {[%clk 0:00:31]} 26...
Kxb6 {[%clk 0:00:36.1]} 27. Bf5 {[%clk 0:00:30.8]} 27... Rf6 {[%clk 0:00:31]}
28. Rf3 {[%clk 0:00:30.8]} 28... Kb7 {[%clk 0:00:27.1]} 29. Rb3+ {[%clk
0:00:30.3]} 29... Rb6 {[%clk 0:00:27.7]} 30. Rba3 {[%clk 0:00:29.2]} 30... a6
{[%clk 0:00:26.2]} 31. b3 {[%clk 0:00:26.4]} 31... Rh6 {[%clk 0:00:23.1]} 32.
Kh3 {[%clk 0:00:24.3]} 32... Bg5 {[%clk 0:00:17.5]} 33. Rf1 {[%clk 0:00:22.8]}
33... Be3 {[%clk 0:00:05.3]} 34. Rf3 {[%clk 0:00:22.1]} 34... Kb6 {[%clk
0:00:04.1]} 35. Ra1 {[%clk 0:00:21.2]} 35... a5 {[%clk 0:00:03.1]} 36. Re1
{[%clk 0:00:20.6]} 36... Bd2 {[%clk 0:00:02.2]} 37. Ref1 {[%clk 0:00:20.1]}
37... Be3 {[%clk 0:00:02]} 38. Bg4 {[%clk 0:00:19.8]} 38... a4 {[%clk 0:00:02]}
39. bxa4 {[%clk 0:00:18.2]} 39... Ka5 {[%clk 0:00:01.4]} 40. Rf6 {[%clk
0:00:17.3]} 1-0

[Event "Early-Titled-Tuesday-Blitz-June-18-2024"]
[Site "Chess.com"]
[Date "2024.06.18"]
[Round "8"]
[White "rookpower2004"]
[Black "xakevicius91"]
[Result "1-0"]
[WhiteElo "2493"]
[BlackElo "2624"]
[TimeControl "180+1"]
[EndTime "9:30:34 PDT"]
[Termination "rookpower2004 won by checkmate"]

1. e4 {[%clk 0:02:57.1]} 1... c5 {[%clk 0:02:59]} 2. Nf3 {[%clk 0:02:56]} 2...
e6 {[%clk 0:02:58.4]} 3. d3 {[%clk 0:02:54.7]} 3... Nc6 {[%clk 0:02:58.5]} 4.
Nbd2 {[%clk 0:02:53]} 4... Nf6 {[%clk 0:02:58.9]} 5. g3 {[%clk 0:02:53.1]} 5...
d6 {[%clk 0:02:59.5]} 6. Bg2 {[%clk 0:02:53.5]} 6... Be7 {[%clk 0:03:00.2]} 7.
O-O {[%clk 0:02:53.5]} 7... O-O {[%clk 0:03:00.8]} 8. Re1 {[%clk 0:02:54.1]}
8... Bd7 {[%clk 0:02:59.5]} 9. c3 {[%clk 0:02:53.7]} 9... b5 {[%clk 0:02:58.1]}
10. d4 {[%clk 0:02:53.3]} 10... cxd4 {[%clk 0:02:58.1]} 11. cxd4 {[%clk
0:02:50.9]} 11... Qb6 {[%clk 0:02:58.6]} 12. Nb3 {[%clk 0:02:11.8]} 12... d5
{[%clk 0:02:57.2]} 13. e5 {[%clk 0:01:59.4]} 13... Ne4 {[%clk 0:02:56.4]} 14.
Rxe4 {[%clk 0:01:37.8]} 14... dxe4 {[%clk 0:02:55.2]} 15. Ng5 {[%clk 0:01:38.1]}
15... Rad8 {[%clk 0:02:46.5]} 16. Nxe4 {[%clk 0:01:33.5]} 16... Nb4 {[%clk
0:02:38.2]} 17. Qg4 {[%clk 0:01:28.5]} 17... f5 {[%clk 0:02:26.4]} 18. exf6
{[%clk 0:01:25.6]} 18... Bxf6 {[%clk 0:02:26.4]} 19. Nxf6+ {[%clk 0:01:21]}
19... Rxf6 {[%clk 0:02:27.3]} 20. Bg5 {[%clk 0:01:20.9]} 20... Rg6 {[%clk
0:02:21.7]} 21. Bxd8 {[%clk 0:01:14.6]} 21... Qxd8 {[%clk 0:02:21.9]} 22. Qe2
{[%clk 0:01:13.5]} 22... a6 {[%clk 0:02:07.9]} 23. Nc5 {[%clk 0:01:11.8]} 23...
Bc8 {[%clk 0:02:07.3]} 24. a3 {[%clk 0:01:08.6]} 24... Nd5 {[%clk 0:02:07.5]}
25. Re1 {[%clk 0:01:03.5]} 25... Rf6 {[%clk 0:02:03.5]} 26. Qe5 {[%clk
0:00:59.5]} 26... Ne7 {[%clk 0:01:51]} 27. Bh3 {[%clk 0:00:57.3]} 27... Nc6
{[%clk 0:01:49.1]} 28. Qe4 {[%clk 0:00:53.6]} 28... Nxd4 {[%clk 0:01:47.5]} 29.
Rd1 {[%clk 0:00:52.9]} 29... e5 {[%clk 0:01:45.5]} 30. Bg2 {[%clk 0:00:48.6]}
30... Qe7 {[%clk 0:01:14.4]} 31. Rxd4 {[%clk 0:00:37.1]} 31... Qxc5 {[%clk
0:01:13.4]} 32. Rd8+ {[%clk 0:00:33.8]} 32... Kf7 {[%clk 0:01:06.7]} 33. Bf3
{[%clk 0:00:33.8]} 33... h6 {[%clk 0:00:45]} 34. h4 {[%clk 0:00:32.2]} 34... Ke7
{[%clk 0:00:38.4]} 35. Rd5 {[%clk 0:00:22.9]} 35... Qc1+ {[%clk 0:00:35.8]} 36.
Kg2 {[%clk 0:00:23]} 36... Re6 {[%clk 0:00:34.6]} 37. Rxe5 {[%clk 0:00:22]}
37... Qxb2 {[%clk 0:00:29.7]} 38. Rxe6+ {[%clk 0:00:19.6]} 38... Bxe6 {[%clk
0:00:30.6]} 39. Qb7+ {[%clk 0:00:19.5]} 39... Kf6 {[%clk 0:00:27.7]} 40. Qxa6
{[%clk 0:00:18.9]} 40... Qxa3 {[%clk 0:00:27.8]} 41. Qxa3 {[%clk 0:00:18.2]}
41... Bc4 {[%clk 0:00:27.2]} 42. Qc5 {[%clk 0:00:17.6]} 42... g5 {[%clk
0:00:26.6]} 43. Qd6+ {[%clk 0:00:17.9]} 43... Kf7 {[%clk 0:00:26.6]} 44. hxg5
{[%clk 0:00:18.7]} 44... hxg5 {[%clk 0:00:27.4]} 45. Bd5+ {[%clk 0:00:18.3]}
45... Bxd5+ {[%clk 0:00:27.2]} 46. Qxd5+ {[%clk 0:00:19.2]} 46... Kf6 {[%clk
0:00:28.1]} 47. Qxb5 {[%clk 0:00:19.8]} 47... g4 {[%clk 0:00:29]} 48. f3 {[%clk
0:00:19.1]} 48... gxf3+ {[%clk 0:00:29.2]} 49. Kxf3 {[%clk 0:00:19.5]} 49... Kg6
{[%clk 0:00:30.1]} 50. Kf4 {[%clk 0:00:20.4]} 50... Kf6 {[%clk 0:00:31]} 51. g4
{[%clk 0:00:20.7]} 51... Kg6 {[%clk 0:00:31.9]} 52. g5 {[%clk 0:00:21.6]} 52...
Kg7 {[%clk 0:00:32.4]} 53. Qc6 {[%clk 0:00:21.9]} 53... Kf7 {[%clk 0:00:32.3]}
54. Kf5 {[%clk 0:00:22.8]} 54... Kg7 {[%clk 0:00:33.2]} 55. Qd7+ {[%clk
0:00:22.8]} 55... Kg8 {[%clk 0:00:34.1]} 56. Kf6 {[%clk 0:00:23.2]} 56... Kh8
{[%clk 0:00:35]} 57. Qg7# {[%clk 0:00:23.6]} 1-0

[Event "Early-Titled-Tuesday-Blitz-June-18-2024"]
[Site "Chess.com"]
[Date "2024.06.18"]
[Round "8"]
[White "savitha1030"]
[Black "UK_23"]
[Result "1-0"]
[WhiteElo "2584"]
[BlackElo "2409"]
[TimeControl "180+1"]
[EndTime "9:30:36 PDT"]
[Termination "savitha1030 won by resignation"]

1. e4 {[%clk 0:02:59.3]} 1... c6 {[%clk 0:02:59.8]} 2. d4 {[%clk 0:02:58.2]}
2... d5 {[%clk 0:03:00.7]} 3. Nc3 {[%clk 0:02:58.9]} 3... dxe4 {[%clk
0:03:00.7]} 4. Nxe4 {[%clk 0:02:59.8]} 4... Nf6 {[%clk 0:03:01.3]} 5. Nxf6+
{[%clk 0:03:00.4]} 5... exf6 {[%clk 0:03:02.2]} 6. c3 {[%clk 0:03:01.1]} 6...
Bd6 {[%clk 0:03:02.4]} 7. Bd3 {[%clk 0:03:01.7]} 7... O-O {[%clk 0:03:02.9]} 8.
Qc2 {[%clk 0:03:02.4]} 8... Re8+ {[%clk 0:03:03.2]} 9. Ne2 {[%clk 0:03:01.4]}
9... h5 {[%clk 0:03:03.7]} 10. Be3 {[%clk 0:03:01.9]} 10... Nd7 {[%clk
0:02:59.7]} 11. O-O-O {[%clk 0:03:02.4]} 11... h4 {[%clk 0:02:58.4]} 12. Kb1
{[%clk 0:03:00.3]} 12... Nf8 {[%clk 0:02:58.1]} 13. c4 {[%clk 0:03:00.2]} 13...
Be6 {[%clk 0:02:57.6]} 14. a3 {[%clk 0:03:00.2]} 14... Rc8 {[%clk 0:02:56.6]}
15. Nc3 {[%clk 0:02:59.9]} 15... Qd7 {[%clk 0:02:50.5]} 16. d5 {[%clk
0:02:24.4]} 16... cxd5 {[%clk 0:02:47.5]} 17. c5 {[%clk 0:02:17]} 17... Bxc5
{[%clk 0:02:38.9]} 18. Bb5 {[%clk 0:02:16.8]} 18... Bf5 {[%clk 0:02:25.4]} 19.
Bxd7 {[%clk 0:01:55.1]} 19... Bxc2+ {[%clk 0:02:24.7]} 20. Kxc2 {[%clk 0:01:56]}
20... Nxd7 {[%clk 0:02:23.3]} 21. Rxd5 {[%clk 0:01:56.3]} 21... Bxe3 {[%clk
0:02:19.2]} 22. Rxd7 {[%clk 0:01:38.6]} 22... Bxf2 {[%clk 0:02:19.2]} 23. Rxb7
{[%clk 0:01:39]} 23... Bd4 {[%clk 0:02:13.3]} 24. Rd1 {[%clk 0:01:33.7]} 24...
Red8 {[%clk 0:01:55.7]} 25. Rd3 {[%clk 0:01:20.3]} 25... f5 {[%clk 0:01:54.3]}
26. a4 {[%clk 0:01:13.1]} 26... g6 {[%clk 0:01:49.6]} 27. a5 {[%clk 0:01:12]}
27... a6 {[%clk 0:01:47.4]} 28. Rb4 {[%clk 0:01:05.7]} 28... Bf6 {[%clk
0:01:37.7]} 29. Rb6 {[%clk 0:00:58.7]} 29... Rxd3 {[%clk 0:01:27.8]} 30. Kxd3
{[%clk 0:00:59.6]} 30... Rd8+ {[%clk 0:01:28.4]} 31. Kc4 {[%clk 0:00:43.9]}
31... Rc8+ {[%clk 0:01:17]} 32. Kb3 {[%clk 0:00:42.7]} 32... Bxc3 {[%clk
0:01:09.6]} 33. bxc3 {[%clk 0:00:43.6]} 33... f4 {[%clk 0:01:06]} 34. Rxa6
{[%clk 0:00:43.2]} 34... Kg7 {[%clk 0:01:06.3]} 35. h3 {[%clk 0:00:41.2]} 35...
Rc5 {[%clk 0:01:03.2]} 36. Kb4 {[%clk 0:00:37]} 36... Rf5 {[%clk 0:01:03.2]} 37.
Rd6 {[%clk 0:00:35.8]} 37... f3 {[%clk 0:01:02.9]} 38. gxf3 {[%clk 0:00:35.7]}
38... Rxf3 {[%clk 0:01:03.8]} 39. a6 {[%clk 0:00:36]} 39... Rf1 {[%clk
0:01:01.7]} 40. a7 {[%clk 0:00:36.2]} 40... Ra1 {[%clk 0:01:01.8]} 41. Rd7
{[%clk 0:00:36.2]} 41... g5 {[%clk 0:01:02.1]} 42. Kb5 {[%clk 0:00:36.5]} 42...
g4 {[%clk 0:01:02.5]} 43. hxg4 {[%clk 0:00:36.5]} 43... h3 {[%clk 0:01:03]} 44.
Rd3 {[%clk 0:00:18.7]} 44... h2 {[%clk 0:00:59.5]} 45. Rh3 {[%clk 0:00:19]}
45... Rxa7 {[%clk 0:00:51.8]} 46. Rxh2 {[%clk 0:00:19.4]} 46... Kg6 {[%clk
0:00:52.3]} 47. c4 {[%clk 0:00:18.3]} 47... Kg5 {[%clk 0:00:52.5]} 48. Rg2
{[%clk 0:00:18.8]} 48... Kf4 {[%clk 0:00:47.2]} 49. c5 {[%clk 0:00:18.7]} 49...
Kf3 {[%clk 0:00:47.6]} 50. Rg1 {[%clk 0:00:19.1]} 50... Kf2 {[%clk 0:00:48]} 51.
Rd1 {[%clk 0:00:18.8]} 51... Kg3 {[%clk 0:00:47.6]} 52. Rd4 {[%clk 0:00:19]}
52... Kf3 {[%clk 0:00:41.1]} 53. c6 {[%clk 0:00:19.5]} 53... Ke3 {[%clk
0:00:41.2]} 54. Rc4 {[%clk 0:00:20.1]} 54... Ra1 {[%clk 0:00:38.2]} 55. c7
{[%clk 0:00:20.3]} 55... Rb1+ {[%clk 0:00:38.5]} 56. Ka4 {[%clk 0:00:19]} 56...
Ra1+ {[%clk 0:00:37.3]} 57. Kb3 {[%clk 0:00:19.6]} 57... Rb1+ {[%clk 0:00:36.3]}
58. Kc2 {[%clk 0:00:20.1]} 1-0

[Event "Early-Titled-Tuesday-Blitz-June-18-2024"]
[Site "Chess.com"]
[Date "2024.06.18"]
[Round "8"]
[White "InitiatingASC"]
[Black "BestestBP"]
[Result "1-0"]
[WhiteElo "2426"]
[BlackElo "2260"]
[TimeControl "180+1"]
[EndTime "9:30:36 PDT"]
[Termination "InitiatingASC won by checkmate"]

1. d4 {[%clk 0:03:00.9]} 1... Nf6 {[%clk 0:02:29.2]} 2. c4 {[%clk 0:02:58.1]}
2... d6 {[%clk 0:02:29.5]} 3. g3 {[%clk 0:02:57.5]} 3... g6 {[%clk 0:02:29.6]}
4. Nf3 {[%clk 0:02:57.5]} 4... Bg7 {[%clk 0:02:30]} 5. Bg2 {[%clk 0:02:58.3]}
5... Nbd7 {[%clk 0:02:29.5]} 6. O-O {[%clk 0:02:59.1]} 6... O-O {[%clk
0:02:21.7]} 7. b3 {[%clk 0:02:57.2]} 7... e5 {[%clk 0:02:14.4]} 8. Bb2 {[%clk
0:02:56.2]} 8... exd4 {[%clk 0:02:07.1]} 9. Bxd4 {[%clk 0:02:54]} 9... Re8
{[%clk 0:02:06.7]} 10. Nbd2 {[%clk 0:02:53.2]} 10... c6 {[%clk 0:02:06.2]} 11.
e3 {[%clk 0:02:53.5]} 11... Qc7 {[%clk 0:02:06.1]} 12. Qc2 {[%clk 0:02:51]}
12... b6 {[%clk 0:02:05.7]} 13. Rad1 {[%clk 0:02:50.9]} 13... Bb7 {[%clk
0:02:05.6]} 14. Qb2 {[%clk 0:02:51.3]} 14... Nh5 {[%clk 0:02:05.4]} 15. Bxg7
{[%clk 0:02:49.7]} 15... Nxg7 {[%clk 0:02:06.3]} 16. Nb1 {[%clk 0:02:45.7]}
16... Rad8 {[%clk 0:02:05.4]} 17. Rd2 {[%clk 0:02:45.4]} 17... Nc5 {[%clk
0:01:54.8]} 18. Nc3 {[%clk 0:02:45.4]} 18... Bc8 {[%clk 0:01:36.6]} 19. Rfd1
{[%clk 0:02:40]} 19... Bg4 {[%clk 0:01:30.6]} 20. h3 {[%clk 0:02:39.9]} 20...
Bf5 {[%clk 0:01:27.5]} 21. Nd4 {[%clk 0:02:35.4]} 21... Bd7 {[%clk 0:00:52.6]}
22. Nde2 {[%clk 0:02:26.6]} 22... Bc8 {[%clk 0:00:38.4]} 23. g4 {[%clk
0:02:11.2]} 23... Nge6 {[%clk 0:00:31.1]} 24. Ng3 {[%clk 0:02:10.5]} 24... Ng5
{[%clk 0:00:27.5]} 25. h4 {[%clk 0:02:00.8]} 25... Nge6 {[%clk 0:00:25.9]} 26.
Nce4 {[%clk 0:02:00.8]} 26... Nxe4 {[%clk 0:00:24.8]} 27. Nxe4 {[%clk
0:02:01.2]} 27... Ng7 {[%clk 0:00:05.2]} 28. Nf6+ {[%clk 0:01:40.3]} 28... Kh8
{[%clk 0:00:05.5]} 29. Rxd6 {[%clk 0:01:30]} 29... Rxd6 {[%clk 0:00:03.6]} 30.
Rxd6 {[%clk 0:01:29.5]} 30... Rd8 {[%clk 0:00:03.9]} 31. Rxd8+ {[%clk
0:01:21.5]} 31... Qxd8 {[%clk 0:00:03.9]} 32. g5 {[%clk 0:01:21.8]} 32... Bf5
{[%clk 0:00:02.4]} 33. Bxc6 {[%clk 0:01:20.8]} 33... Qd1+ {[%clk 0:00:02]} 34.
Kh2 {[%clk 0:01:17.5]} 34... Qd6+ {[%clk 0:00:02.9]} 35. f4 {[%clk 0:01:15.6]}
35... Qxc6 {[%clk 0:00:03.2]} 36. Qe5 {[%clk 0:01:15]} 36... Qc8 {[%clk
0:00:02.2]} 37. h5 {[%clk 0:01:11.2]} 37... Qe6 {[%clk 0:00:02]} 38. Qb8+ {[%clk
0:01:07.2]} 38... Qc8 {[%clk 0:00:02.4]} 39. Qxa7 {[%clk 0:01:07.6]} 39... Nxh5
{[%clk 0:00:02.2]} 40. Qxf7 {[%clk 0:01:06.7]} 40... Nxf6 {[%clk 0:00:02]} 41.
gxf6 {[%clk 0:01:05.8]} 41... Qg8 {[%clk 0:00:02]} 42. Qe7 {[%clk 0:01:04.7]}
42... Be6 {[%clk 0:00:02.2]} 43. Qd6 {[%clk 0:01:01.5]} 43... h5 {[%clk
0:00:02.3]} 44. Qxb6 {[%clk 0:01:01.3]} 44... Qf7 {[%clk 0:00:02.8]} 45. Qd8+
{[%clk 0:01:00.3]} 45... Kh7 {[%clk 0:00:03.3]} 46. a4 {[%clk 0:01:00]} 46...
Qd7 {[%clk 0:00:01.9]} 47. Qxd7+ {[%clk 0:00:58.6]} 47... Bxd7 {[%clk
0:00:02.8]} 48. e4 {[%clk 0:00:59]} 48... Kg8 {[%clk 0:00:02.9]} 49. e5 {[%clk
0:00:59.7]} 49... Kf7 {[%clk 0:00:03.5]} 50. a5 {[%clk 0:00:59.8]} 50... Be6
{[%clk 0:00:03.2]} 51. a6 {[%clk 0:00:59.2]} 51... Bc8 {[%clk 0:00:03.8]} 52. a7
{[%clk 0:00:59.3]} 52... Bb7 {[%clk 0:00:04.3]} 53. b4 {[%clk 0:00:58.8]} 53...
Ke6 {[%clk 0:00:04.9]} 54. Kg3 {[%clk 0:00:58.3]} 54... g5 {[%clk 0:00:05.1]}
55. fxg5 {[%clk 0:00:57.4]} 55... Kf7 {[%clk 0:00:03.6]} 56. Kh4 {[%clk
0:00:56.8]} 56... Kg6 {[%clk 0:00:04]} 57. e6 {[%clk 0:00:57.3]} 57... Bf3
{[%clk 0:00:03.3]} 58. b5 {[%clk 0:00:55]} 58... Bb7 {[%clk 0:00:03.6]} 59. c5
{[%clk 0:00:55.4]} 59... Bd5 {[%clk 0:00:03.1]} 60. c6 {[%clk 0:00:55.1]} 60...
Bxe6 {[%clk 0:00:03.3]} 61. a8=Q {[%clk 0:00:54.8]} 61... Bf7 {[%clk 0:00:03.3]}
62. Qh8 {[%clk 0:00:54.1]} 62... Be8 {[%clk 0:00:01.7]} 63. Qxe8+ {[%clk
0:00:54]} 63... Kh7 {[%clk 0:00:02.6]} 64. Qf7+ {[%clk 0:00:53.7]} 64... Kh8
{[%clk 0:00:03]} 65. Qg7# {[%clk 0:00:54.2]} 1-0

[Event "Early-Titled-Tuesday-Blitz-June-18-2024"]
[Site "Chess.com"]
[Date "2024.06.18"]
[Round "8"]
[White "Durarbayli"]
[Black "KNVB"]
[Result "1-0"]
[WhiteElo "2965"]
[BlackElo "2832"]
[TimeControl "180+1"]
[EndTime "9:30:38 PDT"]
[Termination "Durarbayli won on time"]

1. e4 {[%clk 0:02:41.3]} 1... b6 {[%clk 0:02:56.9]} 2. d4 {[%clk 0:02:39.9]}
2... Bb7 {[%clk 0:02:57.1]} 3. Nc3 {[%clk 0:02:39.8]} 3... e6 {[%clk 0:02:57.5]}
4. Bd3 {[%clk 0:02:31]} 4... Nf6 {[%clk 0:02:56]} 5. Nf3 {[%clk 0:02:30]} 5...
Bb4 {[%clk 0:02:56]} 6. e5 {[%clk 0:02:29.6]} 6... Ne4 {[%clk 0:02:56.3]} 7. Bd2
{[%clk 0:02:07.3]} 7... Bxc3 {[%clk 0:02:56]} 8. Bxc3 {[%clk 0:02:04.8]} 8... f5
{[%clk 0:02:44]} 9. Bb4 {[%clk 0:01:52.4]} 9... Nc6 {[%clk 0:02:06.4]} 10. Ba3
{[%clk 0:01:50.7]} 10... Ne7 {[%clk 0:02:05.1]} 11. Nd2 {[%clk 0:01:45.8]} 11...
O-O {[%clk 0:01:38.5]} 12. f3 {[%clk 0:01:45.2]} 12... Nxd2 {[%clk 0:00:31.6]}
13. Qxd2 {[%clk 0:01:46.1]} 13... a5 {[%clk 0:00:32.2]} 14. O-O {[%clk
0:01:10.6]} 14... Rf7 {[%clk 0:00:18.3]} 15. c4 {[%clk 0:01:10.6]} 15... Qb8
{[%clk 0:00:06]} 16. Rad1 {[%clk 0:01:07.3]} 16... Ba6 {[%clk 0:00:05.9]} 17.
Rfe1 {[%clk 0:01:05.6]} 17... b5 {[%clk 0:00:05.7]} 18. b3 {[%clk 0:01:05]}
18... b4 {[%clk 0:00:02.3]} 19. Bb2 {[%clk 0:01:04.5]} 19... Bb7 {[%clk
0:00:03]} 20. Bf1 {[%clk 0:00:59.7]} 20... Bc6 {[%clk 0:00:01.9]} 21. Kh1 {[%clk
0:00:59.7]} 21... Qb7 {[%clk 0:00:01.9]} 22. Re3 {[%clk 0:00:56.5]} 22... a4
{[%clk 0:00:01.9]} 23. Rd3 {[%clk 0:00:56.1]} 23... axb3 {[%clk 0:00:01.2]} 24.
axb3 {[%clk 0:00:57]} 24... h6 {[%clk 0:00:01.5]} 25. d5 {[%clk 0:00:51.8]}
25... exd5 {[%clk 0:00:02.4]} 26. cxd5 {[%clk 0:00:52.5]} 26... Bb5 {[%clk
0:00:02.9]} 27. e6 {[%clk 0:00:48.7]} 27... Rff8 {[%clk 0:00:01.4]} 28. Qxb4
{[%clk 0:00:46.3]} 28... d6 {[%clk 0:00:01.3]} 29. Rc3 {[%clk 0:00:33.6]} 29...
Rab8 {[%clk 0:00:01.3]} 30. Qd4 {[%clk 0:00:22.8]} 30... Rf6 {[%clk 0:00:01.2]}
31. Bxb5 {[%clk 0:00:22.1]} 31... Qxb5 {[%clk 0:00:02.1]} 32. Rxc7 {[%clk
0:00:22.2]} 32... Rb7 {[%clk 0:00:02.3]} 33. Rxb7 {[%clk 0:00:13.1]} 33... Qxb7
{[%clk 0:00:03.2]} 34. Qc4 {[%clk 0:00:13.6]} 34... Rg6 {[%clk 0:00:03]} 35. Ba3
{[%clk 0:00:11.6]} 35... f4 {[%clk 0:00:01.5]} 36. Bxd6 {[%clk 0:00:10.5]} 36...
Nf5 {[%clk 0:00:02.2]} 37. Bxf4 {[%clk 0:00:10.6]} 37... Kh7 {[%clk 0:00:02.1]}
38. Re1 {[%clk 0:00:06.4]} 38... Nh4 {[%clk 0:00:02.2]} 39. Bg3 {[%clk
0:00:06.3]} 39... Nf5 {[%clk 0:00:02.1]} 40. Qe4 {[%clk 0:00:06.9]} 40... Ne7
{[%clk 0:00:01.6]} 41. d6 {[%clk 0:00:06.7]} 41... Nc6 {[%clk 0:00:01.6]} 42. e7
{[%clk 0:00:06.5]} 42... Qb4 {[%clk 0:00:01]} 43. e8=Q {[%clk 0:00:06.4]} 1-0